Cogmind - Beta 15 @@@ ROGUE MODE // 2025.05.16 @ 20:02:52 Player: Lunace Result: Destroyed by Y-54 Guardian with Gatling Laser Performance ------------- Evolutions (0) 0 Regions Visited (3) 600 Robots Destroyed (32) 160 Value Destroyed (493) 493 Prototype IDs (0) 0 Alien Tech Used (0) 0 Bonus (0) 0 TOTAL SCORE: 1253 Bonus ------- None Cogmind --------- Core Integrity 0/250 Matter 290/300 Energy 49/100 System Corruption 0% Temperature Cool (12) Movement Treading (480) Ox4 Location -7/Recycling Parts ------- > --- POWER (1) -------- (None) > --- PROPULSION (2) --- Light Treads > --- UTILITY (2) ------ Huge Storage Unit Improved Shield Generator > --- WEAPON (2) ------- (None) > --- INVENTORY (25) --- Light Treads Large Storage Unit Hacking Suite Hacking Suite Hacking Suite Hacking Suite SUBCON Basin (Full) Peak State ------------ > --- POWER ------------ Ion Engine > --- PROPULSION ------- Light Treads Medium Treads > --- UTILITY ---------- Huge Storage Unit Structural Scanner > --- WEAPON ----------- Improved EM Pulse Cannon Barrage Gun > --- INVENTORY -------- Light Treads Large Storage Unit Improved Shield Generator Hacking Suite Hacking Suite SUBCON Basin [Rating: 34] Favorites ----------- Power Ion Engine Engine Ion Engine Propulsion Light Treads Treads Light Treads Wheel Subdweller Monowheel Utility Structural Scanner Device Structural Scanner Storage Large Storage Unit Weapon Barrage Gun Energy Gun Small Laser Energy Cannon Improved EM Pulse Cannon Ballistic Gun Barrage Gun Launcher Grenade Launcher Special Weapon Mining Laser Build | -11 -10 -10 -7 ------- Run | Yrd Mat Sub Rec Slots Evolved . | . . . . Power . | . . . . Propulsion . | . . . . Utility . | . . . . Weapon . | . . . . Parts Attached 33 | 8 9 12 4 Power 5 | 1 1 3 . Engine 5 | 1 1 3 . Core . | . . . . Reactor . | . . . . Propulsion 9 | 2 3 3 1 Treads 8 | 2 3 2 1 Leg . | . . . . Wheel 1 | . . 1 . Hover . | . . . . Flight . | . . . . Utility 8 | 2 2 2 2 Device 5 | 1 1 2 1 Storage 3 | 1 1 . 1 Processor . | . . . . Hackware . | . . . . Protection . | . . . . Artifact . | . . . . Weapon 11 | 3 3 4 1 Energy Gun 2 | 2 . . . Energy Cannon 1 | . . . 1 Ballistic Gun 6 | 1 3 2 . Ballistic Cannon . | . . . . Launcher 1 | . . 1 . Special Weapon 1 | . . 1 . Impact Weapon . | . . . . Slashing Weapon . | . . . . Piercing Weapon . | . . . . Special Melee Weapon . | . . . . Unidentified Prototypes . | . . . . Parts Lost 5 | . . . 5 Power 1 | . . . 1 Propulsion 1 | . . . 1 Utility 1 | . . . 1 Weapon 2 | . . . 2 Highest Loss Streak 5 | . . . 5 To Critical Strikes . | . . . . Average Backups 7 | 2 9 10 2 Power 1 | . 1 2 . Propulsion 1 | . 3 1 . Utility 1 | . 1 1 1 Weapon 3 | 1 3 5 . Tool/Special . | . . . . Unused Backups 18 | . 6 8 4 Power 1 | . 1 . . Propulsion 4 | . 4 . . Utility 6 | . . 2 4 Weapon 7 | . 1 6 . Tool/Special . | . . . . Average Slot Usage (%) 98 | . 94 99 98 Engine 12 | . 9 13 13 Treads 27 | . 27 26 27 Device 13 | . 13 14 13 Storage 14 | . 14 14 14 Energy Cannon 3 | . . . 11 Ballistic Gun 20 | . 26 20 13 Launcher 3 | . . 7 1 Peak Build Rating 34 | 9 10 27 34 Average Rating 15 | 5 8 11 30 On Entrance 11 | . 9 8 27 Naked Turns . | . . . . Heaviest Build 96 | 13 30 34 96 Greatest Support 48 | 40 40 40 48 Greatest Overweight (x) 4 | . 1 1 4 Average Overweight (x) . | . . . 1 Largest Inventory Capacity 25 | 8 15 15 25 Average Capacity 17 | 7 14 15 24 Most Carried 22 | 3 15 15 22 Average Carried 13 | 2 10 14 17 Final Capacity 25 | 8 15 15 25 Final Carried 21 | 3 12 15 21 Class Distribution -------------------- 100% | Mutant Dominant Class ---------------- Mutant | -10/Materials Mutant | -10/Subcaves Mutant | -7/Recycling Resources | -11 -10 -10 -7 ----------- Run | Yrd Mat Sub Rec Matter Collected 958 | 290 232 283 153 Remotely . | . . . . Salvage Created 752 | 191 315 171 75 Parts 59 | 12 29 14 4 Haulers Intercepted 2 | . 2 . . Recyclers Shooed 1 | . 1 . . Parts Field Recycled . | . . . . Retrieved Matter . | . . . . Parts Self-Destructed 8 | . . 8 . Prevented . | . . . . Kills | -11 -10 -10 -7 ------- Run | Yrd Mat Sub Rec Combat Hostiles Destroyed 17 | . 7 9 1 Guns 11 | . 7 3 1 AOE 6 | . . 6 . Classes Destroyed 10 | 2 5 2 1 Builder 1 | . 1 . . Tunneler 6 | 6 . . . Hauler 2 | . 2 . . Recycler 1 | 1 . . . Turret 2 | . . 2 . Watcher 3 | . 3 . . Swarmer 12 | . 6 6 . Grunt 1 | . 1 . . Sentry 1 | . . . 1 Subdweller 3 | . . 3 . Best Kill Streak 5 | 3 4 5 1 Combat Bots Only 3 | . 3 3 1 Max Kills in Single Turn 3 | 1 2 3 1 Gunslinging 1 | . 1 . . Exploded 3 | . . 3 . Melee . | . . . . Uniques/NPCs Destroyed . | . . . . Combat | -11 -10 -10 -7 -------- Run | Yrd Mat Sub Rec Hostile Shots Fired 202 | . 54 46 102 Missed 75 | . 16 23 36 Hits 127 | . 38 23 66 Projectile 127 | . 38 23 66 Critical Strikes 1 | . 1 . . Damage Taken 1361 | 39 312 519 491 Core 255 | . 6 102 147 Absorbed by Shields 9 | . . . 9 Regen/Repaired (Parts) 23 | . 23 . . Core Remaining (%) 100 | 100 . . . Volleys Fired 87 | 17 39 25 6 Largest 2 | 2 2 2 2 Hottest 100 | 80 40 100 97 Shots Fired 159 | 33 78 41 7 Gun 144 | 33 78 27 6 Cannon 1 | . . . 1 Launcher 12 | . . 12 . Special 2 | . . 2 . Kinetic 121 | 10 78 27 6 Thermal 19 | 17 . 2 . Explosive 12 | . . 12 . Electromagnetic 7 | 6 . . 1 Robot Hit Streak 9 | 4 9 8 9 Robot Miss Streak 3 | 2 3 2 1 Penetration Max . | . . . . Secondary Targets 2 | . 1 1 . Max Gunslinging Chain 1 | . 1 1 . Shots Hit Robots 88 | 17 46 19 6 Core Hits 51 | 8 22 18 3 Critical Kills . | . . . . Critical Parts Destroyed . | . . . . Critical Strikes . | . . . . Melee Attacks . | . . . . Impact . | . . . . Slashing . | . . . . Piercing . | . . . . Sneak Attacks . | . . . . Combat Hostiles . | . . . . Follow-up Attacks . | . . . . Damage Inflicted 1327 | 240 428 556 103 Guns 893 | 178 428 208 79 Cannons 24 | . . . 24 Explosions 410 | 62 . 348 . Melee . | . . . . Ramming . | . . . . Kinetic 744 | 29 428 208 79 Thermal 147 | 147 . . . Explosive 348 | . . 348 . Electromagnetic 88 | 64 . . 24 Impact . | . . . . Slashing . | . . . . Piercing . | . . . . Highest Corruption . | . . . . Average Corruption . | . . . . Corruption Purged . | . . . . Corruption Blocked . | . . . . Overload Shots . | . . . . Overflow Damage . | . . . . Projectiles . | . . . . Explosions . | . . . . Melee . | . . . . Knockbacks . | . . . . Impact . | . . . . Kinetic . | . . . . Secondary . | . . . . Self-Inflicted Damage 77 | 39 . 38 . Shots 4 | 1 . 3 . Rammed . | . . . . Targets Rammed . | . . . . Kicked . | . . . . Crushed . | . . . . Highest Temperature 120 | 120 . . 56 Average Temperature 48 | 52 . . 31 Received Heat Transfer 291 | . 36 111 144 Siege Activations . | . . . . Martial Activations . | . . . . Shielding Activations . | . . . . Robots Disrupted . | . . . . Combat Hostiles . | . . . . Robots Corrupted . | . . . . Combat Hostiles . | . . . . Parts Fried . | . . . . Impact Corruptions . | . . . . Robots Melted . | . . . . Combat Hostiles . | . . . . Parts Melted . | . . . . Heat Transferred 300 | 300 . . . Parts Sabotaged . | . . . . Parts Stolen . | . . . . Parts Stripped . | . . . . Power Chain Reactions 2 | 2 . . . Alert | -11 -10 -10 -7 ------- Run | Yrd Mat Sub Rec Maximum Alert Level . | . . . . Low Security (%) 100 | 100 100 . 100 Level 1 . | . . . . Level 2 . | . . . . Level 3 . | . . . . Level 4 . | . . . . Level 5 . | . . . . High Security . | . . . . Max Security . | . . . . Peak Influence 78 | 10 70 . 78 Initial 78 | . . . 78 Average 14 | 1 24 . 9 Influence Increases 650 | 35 245 290 80 Destroy 0b10 Robot/C 320 | . 140 160 20 Destroy 0b10 Robot/NC 65 | 35 30 . . Destroy Leader 50 | . 40 10 . Successful Hack 4 | . 4 . . Select Force Hacks 60 | . . . 60 Destroy Structure 1 | . 1 . . Lose Combat Pursuer 150 | . 30 120 . Influence Decreases 650 | 35 245 126 244 Entered New Map 86 | . . . 86 Time Decay 520 | 35 245 126 114 Lost Part 44 | . . . 44 Squads Dispatched 1 | . 1 . . Investigation . | . . . . Extermination . | . . . . Reinforcement 1 | . 1 . . Assault . | . . . . Garrison . | . . . . Intercept . | . . . . Searches Triggered . | . . . . Construction Impeded . | . . . . Haulers Reinforced . | . . . . Active Scanning Responses . | . . . . Cargo Convoy Interrupts . | . . . . Stealth | -11 -10 -10 -7 --------- Run | Yrd Mat Sub Rec Distress Signals 2 | . 2 . . Communications Jammed . | . . . . Distress Signals . | . . . . Times Spotted 28 | . 12 14 2 Peak Tracking Total 4 | . 4 4 2 Tactical Retreats 2 | . 1 1 . Traps | -11 -10 -10 -7 ------- Run | Yrd Mat Sub Rec Traps Triggered 6 | . 3 3 . Indirectly . | . . . . Trap Hack Attempts . | . . . . Triggered . | . . . . Disarmed . | . . . . Reprogrammed . | . . . . Reused . | . . . . Traps Extracted . | . . . . Installed . | . . . . Triggered . | . . . . Machines | -11 -10 -10 -7 ---------- Run | Yrd Mat Sub Rec Machines Disabled 2 | . . 2 . Max in Single Turn 2 | . . 2 . Machines Repaired . | . . . . Machines Dismantled . | . . . . Machines Sabotaged . | . . . . Overloaded Fab Kills . | . . . . Hacking | -11 -10 -10 -7 --------- Run | Yrd Mat Sub Rec Machines Accessed 15 | . 8 3 4 Terminals 8 | . 6 . 2 Fabricators . | . . . . Repair Stations 1 | . 1 . . Recycling Units 3 | . 1 . 2 Scanalyzers . | . . . . Garrison Access . | . . . . Total Hacks 29 | . 19 6 4 Successful 18 | . 10 6 2 Failed 11 | . 9 . 2 Catastrophic 4 | . 3 . 1 Database Lockouts . | . . . . Manual 16 | . 12 . 4 Terminals 17 | . 15 . 2 Fabricators . | . . . . Repair Stations 2 | . 2 . . Recycling Units 4 | . 2 . 2 Scanalyzers . | . . . . Garrison Access . | . . . . Terminal Hacks 8 | . 2 6 . Record 4 | . . 4 . Open Door 1 | . . 1 . Terminal Index 1 | . 1 . . Alert Level 1 | . 1 . . Release Object 1 | . . 1 . Fabricator Hacks . | . . . . Repair Station Hacks 2 | . 2 . . Scan Component 1 | . 1 . . Repair 1 | . 1 . . Recycling Unit Hacks 1 | . 1 . . Retrieve Components 1 | . 1 . . Scanalyzer . | . . . . Garrison Access Hacks . | . . . . Unauthorized Hacks 7 | . 5 . 2 Terminals 4 | . 4 . . Botnet 3 | . 3 . . Operators 1 | . 1 . . Fabricators . | . . . . Repair Stations . | . . . . Recycling Units 3 | . 1 . 2 Reject 1 | . 1 . . Tunnel 2 | . . . 2 Scanalyzers . | . . . . Garrison Access . | . . . . Data Cores Recovered . | . . . . Used . | . . . . Hacking Detections 9 | . 7 . 2 Full Trace Events . | . . . . Feedback Events . | . . . . Feedback Blocked . | . . . . Robot Schematics Acquired . | . . . . Robots Built . | . . . . Authchips . | . . . . Time . | . . . . Total Robot Build Rating . | . . . . Part Schematics Acquired . | . . . . Parts Built . | . . . . Authchips . | . . . . Time . | . . . . Total Part Build Rating . | . . . . Parts Repaired 1 | . 1 . . Time 26 | . 26 . . Parts Recycled . | . . . . Recycled Matter . | . . . . Retrieved Matter . | . . . . Retrieved Components 9 | . 9 . . Parts Scanalyzed . | . . . . Part Schematics Acquired . | . . . . Parts Damaged . | . . . . Bothacking | -11 -10 -10 -7 ------------ Run | Yrd Mat Sub Rec Used RIF Installer . | . . . . Robots Hacked . | . . . . Non-combat . | . . . . Combat . | . . . . Robot Hacks Applied . | . . . . Relay Couplers Released . | . . . . Fabnet Peak Effective % . | . . . . Robots Rewired . | . . . . Allies Hacked . | . . . . Hacks Repelled . | . . . . Allies | -11 -10 -10 -7 -------- Run | Yrd Mat Sub Rec Total Allies . | . . . . Largest Group . | . . . . Highest-Rated Group . | . . . . Highest-Rated Ally . | . . . . Total Orders . | . . . . Ally Attacks . | . . . . Total Damage . | . . . . Kills . | . . . . Allies Corrupted . | . . . . Allies Melted . | . . . . Intel | -11 -10 -10 -7 ------- Run | Yrd Mat Sub Rec Active Infowar (turns) 3485 | 29 830 1574 1052 Optics 21 | . . 21 . Terrain 284 | 29 255 . . Structural 3150 | . 575 1523 1052 Seismic 30 | . . 30 . Robot Analysis Total . | . . . . Derelict Logs Recovered 1 | . . 1 . Drone Launches . | . . . . Drone Recoveries . | . . . . Exploration | -11 -10 -10 -7 ------------- Run | Yrd Mat Sub Rec Turns Passed 3694 | 223 831 1575 1065 Spaces Moved 1777 | 102 403 920 352 Core 2 | 2 . . . Treads 1711 | 100 403 856 352 Legs . | . . . . Wheels 64 | . . 64 . Hover . | . . . . Flight . | . . . . Fastest Speed 50 | 50 160 120 160 Average Speed 185 | 157 160 157 296 Slowest Speed 480 | 160 240 160 480 Overloaded Moves . | . . . . Propulsion Burnouts . | . . . . Robots Hopped . | . . . . Potential Cave-ins . | . . . . Cave-ins Triggered . | . . . . Exploration Rate (%) 56 | 5 88 67 64 Regions Visited 3 Branch Regions 2 Pre-discovered Areas 3 | . . 1 2 Known Exits Taken . | . . . . Unknown Exits Taken 3 | 1 1 1 . Scrap Searched . | . . . . Spaces Dug 4 | . . 4 . Terrain Destroyed 52 | 6 . 46 . Melee . | . . . . Projectile . | . . . . AOE 52 | 6 . 46 . Terrain Rammed . | . . . . Walls Destroyed . | . . . . Machines Disabled . | . . . . Actions | -11 -10 -10 -7 --------- Run | Yrd Mat Sub Rec Total 2035 | 129 525 1009 372 Wait 51 | . 40 10 1 Move 1774 | 101 402 919 352 Hop . | . . . . Pick Up 36 | 3 16 10 7 Fast Attach 19 | 7 7 4 1 Attach 2 | . 1 . 1 Detach 1 | . . 1 . Swap 22 | 1 6 13 2 Drop 43 | . 14 27 2 Fire 87 | 17 39 25 6 Melee . | . . . . Ram . | . . . . Kick . | . . . . Crush . | . . . . Escape Stasis . | . . . . Rewire . | . . . . Trap . | . . . . Miscellaneous . | . . . . Route ------- -11/Scrapyard -10/Materials (discovered 6 exits: [*Mat x3] / [*Min x2] / *Sub) -10/Subcaves (discovered 2 exits: [*Mat] / *Rec) -7/Recycling (discovered 1 exit: [*Fac]) History --------- Turn | Location | Event 27 | -11/Scrapyard | Discovered new exit (range 15) 224 | -11/Scrapyard | Entered Materials 328 | -10/Materials | Build established: Mutant 510 | -10/Materials | Discovered new exit (range 7) 603 | -10/Materials | Repaired Ion Engine 614 | -10/Materials | Discovered new exit (range 3) 754 | -10/Materials | Discovered new exit (range 12) 871 | -10/Materials | Discovered new exit (range 12) 893 | -10/Materials | Discovered new exit (range 14) 1013 | -10/Materials | Discovered new exit (range 3) 1055 | -10/Materials | Entered Subcaves 1056 | -10/Subcaves | Approached by a straggling Scientist 1536 | -10/Subcaves | A swath of the cavern ceiling suddenly collapsed 1539 | -10/Subcaves | Shifting Twisted Machinery released Barrage Gun 1614 | -10/Subcaves | Learned location of Zion (-6) 1614 | -10/Subcaves | Met a Zionite searching for "candidates" 1831 | -10/Subcaves | Discovered new exit (range 10) 2315 | -10/Subcaves | Visited Clippyterm 2319 | -10/Subcaves | Learned Factory emergency access door positions 2350 | -10/Subcaves | Discovered new exit (range 13) 2454 | -10/Subcaves | Shifting Twisted Machinery released Sub. Machine Gun 2522 | -10/Subcaves | Found SUBCON Basin 2630 | -10/Subcaves | Entered Recycling 3590 | -7/Recycling | Discovered new exit (range 16) 3669 | -7/Recycling | Core integrity fell below 50% 3686 | -7/Recycling | Core integrity fell below 20% 3695 | -7/Recycling | Destroyed by Y-54 Guardian with Gatling Laser Last Messages --------------- >>Force(Tunnel) DISCOVERED[-9/Mines] 03590_ EXIT=FOUND 03612_ Connecting with Recycling Unit... >>Force(Tunnel) DISCOVERED[-6/Factory] 03619_ Acquired Hacking Suite. 03662_ Y-54 Guardian springs to life. 03668_ Imp. EM Pulse Cannon destroyed. 03676_ Y-54 Guardian misfires. 03677_ Y-54 Guardian destroyed. 03679_ Barrage Gun destroyed. 03681_ R-06 Scavenger collects Lgt. Treads. 03682_ Structural Scanner destroyed. 03682_ Med. Treads destroyed. 03685_ R-06 Scavenger collects Lgt. Treads. 03685_ Ion Engine destroyed. 03688_ R-06 Scavenger collects Gatling Laser. 03692_ R-06 Scavenger collects Imp. Light Armor Plating. Map ----- +----------------------------------------------------+ | ????## # ##### # ##? | | ????## # ##### # ##? | | ????## # ##??? # ##? | | ????#####""T""#### ##??? # ### | | ????#####"""""#### ##??? # ### | | ?################# ##??? # ### | | ?################# ##### # ### | | ?## ##?#########+##### # ### | | ?## < ##### # # ### | | ?## ##### # # ### | | ?## ### # # ### | | ### ### # # ### | | ### ### # # ### | | #"" ##### """ """ # ###+#### | | #"Y ##### """ """ # | | #"" ##?## """ """ + | | ### ##?## """ """ # | | ### ##?## """ """ # # !!## | | ?## ##?## # #!! ## | | ?## ##### # ###### | | ?## ################## ###### | | ?## #! !############## ##??## | | ?## #! !## ########### ##??## | | ?## Y u ##??## | | ?## ##??## | | ?## @ ##??## | | ?## ##??## | | ?## %r r """ ##??## | | ?## # ######### """ ##??## | | ### ########### """ ##??## | | ### # #### ##??## | | #"" # """ #### ##??## | | #"Y + """ #### """ ##??## | | #"" # """ #### """ ##??## | | ### # #### """ ##??## | | ### # """ #### ##??## | | ?## # """ #### ###### | | ?## # """ #### #### ###### | | ?## # #### #### # ! | | ?## # """ #### #### # | | ?## # """ #### !!## # | | ?## # ""????## ! ## # ! | | ?## # ????## !!## # | | ?## #####????## #### # | | ?## #####????## #### # ! | | ?## ##???????## #### + | | ### ##???????## #### # | | ### ##???????## ######## ! | | #%% ########### ########!! | | # % ########### ##????## | +----------------------------------------------------+ Best States ------------- Heat Dissipation 25 Energy Generation 15 Energy Capacity 250 Matter Stores 300 Matter Capacity 300 Sight Range 21 Terrain Scan Range 16 Terrain Scan Density 10 Evasion (%) 40 Recoil Reduction 2 Item Schematics ----------------- None Robot Schematics ------------------ None Fabricated ------------ Nothing Repaired ---------- Ion Engine | 61% | -10/Materials Alien Tech Used ----------------- None Achievements -------------- None Challenges ------------ None Game ------ Seed MissileArmoredTube Manual? 0 Play Time 00:17:34 Cumulative 405.8 hours Start 2025.05.16 @ 19:45:23 End 2025.05.16 @ 20:02:52 Sessions 1 Manual Loads 0 Difficulty Rogue Special Mode None Game No. 402 Rogue 397 Adventurer 5 Explorer 0 Win Type - Total 9 Types 6/0/0/3/0/0/0/0/0/0 Lore% 81 Gallery% 78 Achievement% 71 Wizard Run 0 Options --------- Layout 1 ASCII 0 Keyboard 0 Movement Arrows Keybinds 0 Fullscreen 1 Font 24/Terminus Map View 50x35 Zoom Use 0% Tactical HUD 1 Map Filters NONE Filters NONE Steam 1 RUN: 58e86cfa-1412-4156-8f86-e37d5c7a8534